bitfinex-derivatives/quotes_BNBF0:USTF0_20250617
["timestamp","ask_amount","ask_price","bid_price","bid_amount"]
[1750198988518,1.15104134,647.77,647.41,1.317]
[1750198988724,1.15104134,647.82,647.41,1.317]
[1750198988918,1.53408498,647.98,647.33,1.447]
[1750198988919,1.15104134,647.86,647.33,1.447]
[1750198989323,1.15104134,647.87,647.33,1.447]
[1750198991121,1.15104134,647.88,647.33,1.447]
[1750198991625,1.15104134,647.88,647.34,1.311]
[1750198993127,1.15104134,647.87,647.34,1.311]
[1750198995529,1.15104134,647.88,647.34,1.311]
[1750198998333,1.15104134,647.84,647.34,1.311]
[1750198998533,1.15104134,647.81,647.34,1.311]
[1750199000130,1.15104134,647.83,647.34,1.311]
[1750199002732,1.15104134,647.83,647.35,1.447]
[1750199003337,1.15104134,647.87,647.35,1.447]
[1750199004132,1.15104134,647.88,647.35,1.447]
[1750199008343,1.15104134,647.86,647.35,1.447]
[1750199008545,1.15104134,647.87,647.35,1.447]
[1750199009145,1.15104134,647.86,647.35,1.447]
[1750199009542,1.15104134,647.87,647.35,1.447]
[1750199010046,1.15104134,647.86,647.35,1.447]
[1750199016146,1.15104134,647.87,647.35,1.447]
[1750199016446,1.15104134,647.86,647.35,1.447]
[1750199017248,1.15104134,647.87,647.35,1.447]
[1750199018049,1.15104134,647.83,647.35,1.447]
[1750199019857,1.15104134,647.83,647.16,1.53853111]
[1750199020255,1.15104134,647.83,647.17,1.647]
[1750199022462,1.15104134,647.83,647.18,1.324]
[1750199024264,1.15104134,647.84,647.18,1.324]
[1750199026165,1.15104134,647.85,647.18,1.324]
[1750199027665,1.15104134,647.84,647.18,1.324]
[1750199028166,1.15112601,647.85,647.18,1.324]
[1750199028566,1.15112601,647.84,647.18,1.324]
[1750199030070,1.15112601,647.85,647.18,1.324]
[1750199030480,1.15112601,647.84,647.18,1.324]
[1750199031171,1.15112601,647.85,647.18,1.324]
[1750199031373,1.15112601,647.84,647.18,1.324]
[1750199035274,1.15112601,647.86,647.18,1.324]
[1750199035475,1.15112601,647.85,647.18,1.324]
[1750199036275,1.15112601,647.86,647.18,1.324]
[1750199037271,1.15112601,647.85,647.18,1.324]
[1750199038471,1.15112601,647.85,647.17,1.647]
[1750199039375,1.15112601,647.85,647.14,1.53853111]
[1750199040778,1.15112601,647.84,647.14,1.53853111]
[1750199040978,1.15112601,647.84,647.15,1.447]
[1750199041378,1.15112601,647.82,647.15,1.447]
[1750199041577,1.15112601,647.8,647.15,1.447]
[1750199041779,1.15112601,647.79,647.16,1.535]
[1750199042077,1.15112601,647.78,647.16,1.535]
[1750199042479,1.15112601,647.76,647.16,1.535]
[1750199042977,1.15112601,647.75,647.16,1.535]
[1750199043482,1.15112601,647.74,647.16,1.535]
[1750199044478,1.15112601,647.73,647.16,1.535]
[1750199045683,1.15112601,647.76,647.16,1.535]
[1750199045881,1.15112601,647.75,647.16,1.535]
[1750199046282,1.15112601,647.76,647.16,1.535]
[1750199046481,1.15112601,647.74,647.16,1.535]
[1750199047482,1.15112601,647.73,647.16,1.535]
[1750199048282,1.15112601,647.74,647.16,1.535]
[1750199048481,1.15112601,647.73,647.16,1.535]
[1750199051185,0.26865948,648.08,647.16,1.535]
[1750199051186,1.15112601,647.72,647.16,1.535]
[1750199052585,1.15112601,647.73,647.16,1.535]
[1750199052882,1.53408498,647.91,647.16,1.535]
[1750199052883,1.15112601,647.72,647.16,1.535]
[1750199054285,1.15112601,647.71,647.16,1.535]
[1750199055285,1.15112601,647.72,647.16,1.535]
[1750199055481,1.15112601,647.65,647.16,1.535]
[1750199058289,1.53408498,647.8,647.16,1.535]
[1750199058290,1.15112601,647.66,647.16,1.535]
[1750199060388,1.15112601,647.65,647.16,1.535]
[1750199061392,1.15112601,647.66,647.16,1.535]
[1750199061688,1.15112601,647.64,647.16,1.535]
[1750199061894,0.26865948,648.08,647.16,1.535]
[1750199061895,1.15112601,647.63,647.16,1.535]
[1750199062394,1.15112601,647.62,647.16,1.535]
[1750199063289,1.15112601,647.64,647.16,1.535]
[1750199063490,1.15112601,647.63,647.16,1.535]
[1750199063688,1.41992557,647.61,647.16,1.535]
[1750199064093,1.15112601,647.59,647.16,1.535]
[1750199065293,1.15112601,647.58,647.16,1.535]
[1750199066294,1.15112601,647.57,647.16,1.535]
[1750199066897,1.15112601,647.55,647.16,1.535]
[1750199067191,0.26879956,647.61,647.16,1.535]
[1750199067192,1.15112601,647.54,647.16,1.535]
[1750199067396,1.15112601,647.55,647.16,1.535]
[1750199067597,1.15112601,647.52,647.16,1.535]
[1750199067795,1.15112601,647.53,647.16,1.535]
[1750199067993,1.15112601,647.52,647.16,1.535]
[1750199068193,1.15112601,647.48,647.16,1.535]
[1750199068497,1.15112601,647.49,647.16,1.535]
[1750199069396,1.15112601,647.5,647.16,1.535]
[1750199069595,1.15112601,647.5,647.17,1.447]
[1750199071399,1.15112601,647.51,647.17,1.447]
[1750199071601,1.15112601,647.49,647.17,1.447]
[1750199072298,1.15112601,647.5,647.17,1.447]
[1750199076903,1.15112601,647.46,647.17,1.447]
[1750199077101,1.15112601,647.41,647.17,1.447]
[1750199077801,1.15112601,647.39,647.17,1.447]
[1750199078305,1.15112601,647.4,647.17,1.447]
[1750199079204,1.15112601,647.41,647.17,1.447]
[1750199081305,1.15112601,647.42,647.17,1.447]
[1750199081805,1.15112601,647.42,647.16,1.535]
[1750199084009,1.15112601,647.49,647.16,1.535]
[1750199084609,1.15112601,647.49,647.17,1.447]
[1750199084808,1.15112601,647.51,647.17,1.447]
[1750199085803,1.15112601,647.52,647.17,1.447]
[1750199086810,1.15112601,647.51,647.17,1.447]
[1750199087311,1.15112601,647.52,647.17,1.447]
[1750199087608,1.15112601,647.5,647.18,1.203]
[1750199087807,1.15112601,647.51,647.18,1.203]
[1750199089511,1.15112601,647.5,647.18,1.203]
[1750199090612,1.15112601,647.51,647.18,1.203]
[1750199091615,1.15112601,647.5,647.18,1.203]
[1750199093913,1.15112601,647.49,647.18,1.203]
[1750199095716,1.15112601,647.45,647.18,1.203]
[1750199096116,1.15112601,647.46,647.18,1.203]
[1750199096415,0.26879956,647.61,647.18,1.203]
[1750199096416,1.15112601,647.48,647.18,1.203]
[1750199097817,1.15112601,647.49,647.18,1.203]
[1750199098218,1.15112601,647.5,647.18,1.203]
[1750199100023,1.15112601,647.51,647.18,1.203]
[1750199100719,1.15112601,647.54,647.18,1.203]
[1750199100923,1.15112601,647.55,647.19,1.447]
[1750199101423,1.15112601,647.57,647.19,1.447]
[1750199102123,1.15112601,647.58,647.19,1.447]
[1750199102425,1.15112601,647.57,647.19,1.447]
[1750199105223,1.15112601,647.57,647.2,1.324]
[1750199105525,1.15112601,647.56,647.2,1.324]
[1750199106221,1.15112601,647.55,647.2,1.324]
[1750199108822,0.26879956,647.61,647.2,1.324]
[1750199108823,1.15112601,647.54,647.2,1.324]
[1750199109026,1.15112601,647.55,647.2,1.324]
[1750199110626,1.15112601,647.54,647.2,1.324]
[1750199111328,1.15112601,647.53,647.2,1.324]
[1750199111824,1.15112601,647.54,647.2,1.324]
[1750199112426,1.15112601,647.53,647.2,1.324]
[1750199114631,1.15112601,647.56,647.2,1.324]
[1750199114829,1.15112601,647.6,647.2,1.324]
[1750199115230,1.15112601,647.59,647.2,1.324]
[1750199115426,1.15112601,647.6,647.2,1.324]
[1750199116130,1.15112601,647.59,647.2,1.324]
[1750199116330,1.15112601,647.58,647.2,1.324]
[1750199116533,1.15112601,647.59,647.2,1.324]
[1750199116733,1.15112601,647.58,647.21,1.447]
[1750199117027,1.15112601,647.59,647.21,1.447]
[1750199117833,1.15112601,647.58,647.21,1.447]
[1750199118529,0.26879956,647.61,647.21,1.447]
[1750199118530,1.15112601,647.57,647.21,1.447]
[1750199119334,1.15112601,647.56,647.21,1.447]
[1750199119731,1.15112601,647.58,647.21,1.447]
[1750199120431,1.15112601,647.57,647.21,1.447]
[1750199122437,1.15112601,647.6,647.21,1.447]
[1750199123138,1.41992557,647.61,647.21,1.447]
[1750199124133,0.26879956,647.61,647.21,1.447]
[1750199124335,1.41992557,647.61,647.21,1.447]
[1750199124537,1.15112601,647.59,647.21,1.447]
[1750199125838,1.15112601,647.6,647.21,1.447]
[1750199126236,1.41992557,647.61,647.21,1.447]
[1750199127141,0.26879956,647.61,647.21,1.447]
[1750199129841,0.26879956,647.61,647.2,1.324]
[1750199132840,0.26879956,647.61,647.21,1.237]
[1750199134746,1.15112601,647.64,647.21,1.237]
[1750199134948,1.15112601,647.66,647.21,1.237]
[1750199135148,1.15112601,647.67,647.21,1.237]
[1750199135748,1.15112601,647.68,647.21,1.237]
[1750199135948,1.15112601,647.67,647.21,1.237]
[1750199138355,1.15112601,647.66,647.21,1.237]
[1750199142361,1.15112601,647.65,647.21,1.237]
[1750199143059,1.15112601,647.64,647.21,1.237]
[1750199146259,1.15112601,647.62,647.21,1.237]
[1750199148062,1.15112601,647.65,647.21,1.237]
[1750199148761,1.15112601,647.65,647.22,1.224]
[1750199149563,1.15112601,647.66,647.22,1.224]
[1750199149762,1.15112601,647.68,647.22,1.224]
[1750199150162,1.15112601,647.69,647.22,1.224]
[1750199150366,0.2687736,647.7,647.22,1.224]
[1750199150566,1.15112601,647.73,647.22,1.224]
[1750199152263,1.15112601,647.73,647.23,1.447]
[1750199153466,1.15112601,647.72,647.23,1.447]
[1750199153769,1.15112601,647.74,647.23,1.447]
[1750199154865,1.15112601,647.76,647.23,1.447]
[1750199155066,1.15112601,647.75,647.23,1.447]
[1750199155265,1.15112601,647.68,647.23,1.447]
[1750199155464,1.15112601,647.66,647.23,1.447]
[1750199155865,1.15112601,647.65,647.23,1.447]
[1750199156068,1.15112601,647.64,647.23,1.447]
[1750199157172,1.15112601,647.63,647.23,1.447]
[1750199159275,1.15112601,647.62,647.23,1.447]
[1750199162076,1.15112601,647.65,647.23,1.447]
[1750199163072,1.15112601,647.66,647.23,1.447]
[1750199163277,1.15112601,647.65,647.23,1.447]
[1750199164277,1.15112601,647.61,647.23,1.447]
[1750199164774,1.15112601,647.58,647.23,1.447]
[1750199164972,1.15112601,647.57,647.23,1.447]
[1750199165272,1.15112601,647.56,647.23,1.447]
[1750199165877,1.15112601,647.57,647.23,1.447]
[1750199166275,1.15112601,647.56,647.23,1.447]
[1750199167279,1.15112601,647.57,647.23,1.447]
[1750199168477,1.15112601,647.56,647.23,1.447]
[1750199170279,1.15112601,647.57,647.23,1.447]
[1750199170979,1.53408498,647.69,647.23,1.447]
[1750199171179,1.15147877,647.57,647.23,1.447]
[1750199171376,1.15147877,647.57,647.22,1.224]
[1750199172181,1.15147877,647.56,647.22,1.224]
[1750199174481,1.15147877,647.56,647.23,1.42]
[1750199175580,1.15147877,647.55,647.23,1.42]
[1750199177082,1.15147877,647.54,647.23,1.42]
[1750199180086,1.15147877,647.53,647.23,1.42]
[1750199182189,1.15147877,647.52,647.23,1.42]
[1750199182585,1.15147877,647.52,647.24,1.652]
[1750199183288,1.15147877,647.51,647.24,1.652]
[1750199185385,1.15147877,647.52,647.24,1.652]
[1750199186684,1.15147877,647.53,647.24,1.652]
[1750199187589,1.15147877,647.52,647.24,1.652]
[1750199188287,1.15147877,647.55,647.24,1.652]
[1750199188486,1.15147877,647.5,647.24,1.652]
[1750199189186,1.15147877,647.48,647.24,1.652]
[1750199189490,1.15147877,647.49,647.24,1.652]
[1750199189993,1.15147877,647.5,647.24,1.652]
[1750199191496,1.15147877,647.51,647.24,1.652]
[1750199191795,1.15147877,647.48,647.24,1.652]
[1750199194396,1.15147877,647.49,647.24,1.652]
[1750199196295,1.15147877,647.5,647.24,1.652]
[1750199196497,1.15147877,647.49,647.24,1.652]
[1750199198293,1.15147877,647.46,647.24,1.652]
[1750199200602,1.15147877,647.47,647.24,1.652]
[1750199201201,1.15147877,647.46,647.24,1.652]
[1750199204504,1.15147877,647.46,647.22,1.447]
[1750199204905,1.15147877,647.47,647.22,1.447]
[1750199206903,1.15147877,647.46,647.22,1.447]
[1750199207107,1.15147877,647.46,647.23,1.683]
[1750199207305,1.53408498,647.59,647.23,1.683]
[1750199207306,1.15147877,647.47,647.23,1.683]
[1750199207505,1.15147877,647.46,647.23,1.683]
[1750199207904,1.53408498,647.59,647.23,1.683]
[1750199207905,1.15147877,647.47,647.23,1.683]
[1750199208608,1.53408498,647.59,647.23,1.683]
[1750199208807,1.15139126,647.47,647.23,1.683]
[1750199209710,1.15139126,647.46,647.23,1.683]
[1750199213915,1.15139126,647.47,647.23,1.683]
[1750199214214,1.15139126,647.48,647.23,1.683]
[1750199214718,1.15139126,647.47,647.23,1.683]
[1750199221926,1.15139126,647.48,647.23,1.683]
[1750199222829,1.15139126,647.49,647.23,1.683]
[1750199223327,1.15139126,647.48,647.23,1.683]
[1750199225433,1.15139126,647.56,647.23,1.683]
[1750199225630,1.15139126,647.61,647.23,1.683]
[1750199226134,1.15139126,647.62,647.23,1.683]
[1750199226328,1.15139126,647.63,647.23,1.683]
[1750199227031,1.15139126,647.64,647.23,1.683]
[1750199227430,0.26874973,647.77,647.23,1.683]
[1750199227431,1.15139126,647.65,647.23,1.683]
[1750199227630,1.15139126,647.7,647.23,1.683]
[1750199228135,1.15139126,647.7,647.22,1.447]
[1750199228336,1.15139126,647.71,647.22,1.447]
[1750199229734,1.15139126,647.71,646.85,1.53853111]
[1750199230034,1.15139126,647.71,646.86,0.30918591]
[1750199230236,1.15139126,647.72,646.86,0.30918591]
[1750199230438,1.15139126,647.72,646.87,1.427]
[1750199230637,1.15139126,647.72,646.87,1.73618113]
[1750199231137,1.15139126,647.71,646.87,3.27471224]
[1750199231636,1.15139126,647.72,646.89,1.53853111]
[1750199231837,1.15139126,647.73,646.9,1.8476979]
[1750199232234,1.15139126,647.74,646.91,0.30916201]
[1750199232438,1.15139126,647.74,646.91,1.43516201]
[1750199233337,1.15139126,647.75,646.91,1.43516201]
[1750199235537,1.15139126,647.74,646.93,1.53853111]
[1750199235937,1.15139126,647.73,646.94,1.53853111]
[1750199236238,1.15139126,647.74,646.93,1.53853111]
[1750199237342,1.15139126,647.73,646.96,1.53853111]
[1750199238442,1.15139126,647.73,646.95,1.53853111]
[1750199240243,1.15139126,647.74,646.95,1.53853111]
[1750199240742,1.15139126,647.74,646.94,1.53853111]
[1750199241244,1.15139126,647.7,647.03,1.53853111]
[1750199242441,1.15139126,647.7,647.02,1.53853111]
[1750199242741,1.15139126,647.71,647.01,1.53853111]
[1750199243439,1.15139126,647.7,647.02,1.53853111]
[1750199243640,1.15139126,647.71,647.03,1.53853111]
[1750199244946,1.15139126,647.71,646.92,2.30779666]
[1750199244947,1.15139126,647.74,646.97,1.53853111]
[1750199245743,1.15139126,647.74,646.96,1.53853111]
[1750199247347,1.15139126,647.75,646.95,1.53853111]
[1750199248844,1.15139126,647.74,646.94,1.53853111]
[1750199249045,1.15139126,647.75,646.95,1.53853111]
[1750199249245,1.15139126,647.74,646.94,1.53853111]
[1750199249548,1.15139126,647.75,646.94,1.53853111]
[1750199249950,1.15139126,647.75,646.95,1.53853111]
[1750199250851,1.15139126,647.75,646.94,1.53853111]
[1750199252449,0.26874973,647.77,646.94,1.53853111]
[1750199252752,1.15089817,647.75,646.94,1.53853111]
[1750199253747,1.15089817,647.75,646.95,1.448]
[1750199254753,1.15089817,647.74,646.98,1.53853111]
[1750199255149,1.15036633,647.74,646.98,1.53853111]
[1750199255551,1.15036633,647.73,646.99,1.53853111]
[1750199257254,1.15036633,647.72,647.01,1.53853111]
[1750199257558,1.15036633,647.72,647.02,1.55]
[1750199260660,0.26874973,647.77,647.02,1.55]
[1750199260860,1.15046686,647.72,647.02,1.55]
[1750199264261,1.15046686,647.72,647.02,3.08853111]
[1750199265160,1.15046686,647.71,647.02,3.08853111]
[1750199267361,1.15046686,647.71,647.03,1.53853111]
[1750199268969,1.15046686,647.71,647.04,1.174]
[1750199269569,1.15046686,647.7,647.04,1.174]
[1750199270369,1.15046686,647.7,647.04,2.71253111]
[1750199272368,1.15046686,647.69,647.05,1.53853111]
[1750199274372,1.15046686,647.68,647.06,1.53853111]
[1750199276275,1.15046686,647.69,647.04,1.174]
[1750199277474,1.15046686,647.68,647.04,1.174]
[1750199278371,1.15046686,647.68,647.04,2.71253111]
[1750199279377,1.15046686,647.67,647.04,2.71253111]
[1750199280475,1.15046686,647.67,647.05,1.53853111]
[1750199281175,1.15046686,647.66,647.06,1.53853111]
[1750199282379,1.15046686,647.65,647.06,1.53853111]
[1750199282576,1.15046686,647.65,647.07,1.53853111]
[1750199282780,1.15046686,647.65,647.06,1.53853111]
[1750199282976,1.15046686,647.65,647.07,1.53853111]
[1750199283180,1.15046686,647.64,647.07,1.53853111]
[1750199284282,1.15046686,647.63,647.08,3.00553111]
[1750199285279,1.15046686,647.62,647.1,1.53853111]
[1750199285484,1.15046686,647.61,647.09,1.53853111]
[1750199285683,1.15046686,647.61,647.1,1.53853111]
[1750199286081,1.15046686,647.6,647.13,1.53853111]
[1750199286382,1.15046686,647.59,647.14,1.53853111]
[1750199287181,1.15046686,647.58,647.15,1.53853111]
[1750199291184,1.15046686,647.57,647.16,1.53853111]
[1750199291987,1.15046686,647.57,647.08,1.467]
[1750199291988,1.15046686,647.57,647.15,1.53853111]
[1750199292189,1.15046686,647.57,647.16,1.53853111]
[1750199294190,1.15046686,647.58,647.16,1.53853111]
[1750199295988,1.15046686,647.57,647.16,1.53853111]
[1750199296393,1.15046686,647.58,647.16,1.53853111]
[1750199297892,1.15046686,647.58,647.15,1.53853111]
[1750199298795,1.15046686,647.62,647.14,1.53853111]
[1750199298991,1.15046686,647.62,647.15,1.53853111]
[1750199299890,1.15046686,647.63,647.15,1.53853111]
[1750199301090,1.15046686,647.63,647.16,1.53853111]
[1750199301392,1.15046686,647.64,647.15,1.53853111]
[1750199301592,1.15046686,647.63,647.16,1.53853111]
[1750199301790,1.15046686,647.63,647.16,1.448]
[1750199303393,1.15046686,647.64,647.16,1.448]
[1750199303696,1.15046686,647.63,647.16,1.448]
[1750199304292,1.15046686,647.64,647.16,1.448]
[1750199307799,1.15046686,647.63,647.16,2.98653111]
[1750199308398,1.15046686,647.64,647.16,2.98653111]
[1750199308598,1.15046686,647.66,647.18,1.53853111]
[1750199308795,1.15046686,647.67,647.21,1.53853111]
[1750199311102,1.15046686,647.67,647.22,1.649]
[1750199311302,1.15046686,647.62,647.22,1.649]
[1750199312199,1.15046686,647.61,647.22,1.649]
[1750199313599,1.15046686,647.63,647.22,1.649]
[1750199316602,1.15046686,647.65,647.22,1.649]
[1750199316805,1.53408498,647.8,647.22,1.649]
[1750199316806,1.15046686,647.67,647.22,1.649]
[1750199317302,1.15046686,647.66,647.22,1.649]
[1750199317905,1.15046686,647.67,647.22,1.649]
[1750199320309,1.15046686,647.69,647.22,1.649]
[1750199321609,1.15046686,647.69,647.23,1.099]
[1750199321910,1.53408498,647.83,647.23,1.099]
[1750199322211,1.15497437,647.69,647.23,1.099]
[1750199323406,1.15497437,647.68,647.23,1.099]
[1750199326211,1.15497437,647.67,647.23,1.099]
[1750199326613,1.15497437,647.64,647.23,1.099]
[1750199327915,1.15497437,647.65,647.23,1.099]
[1750199328313,1.15497437,647.63,647.23,1.099]
[1750199329622,1.15497437,647.64,647.23,1.099]
[1750199336530,1.15497437,647.64,647.24,1.271]
[1750199337726,1.15497437,647.63,647.24,1.271]
[1750199338330,1.15497437,647.64,647.24,1.271]
[1750199338527,1.15497437,647.63,647.24,1.271]
[1750199339327,1.15497437,647.62,647.24,1.271]
[1750199339528,1.15497437,647.61,647.24,1.271]
[1750199339727,1.15497437,647.6,647.24,1.271]
[1750199340033,1.15497437,647.61,647.24,1.271]
[1750199340228,1.15497437,647.6,647.24,1.271]
[1750199340431,1.15497437,647.61,647.24,1.271]
[1750199341333,1.15497437,647.6,647.24,1.271]
[1750199341529,1.15497437,647.61,647.24,1.271]
[1750199341735,1.15497437,647.56,647.24,1.271]
[1750199341933,1.15497437,647.55,647.24,1.271]
[1750199342433,1.15497437,647.56,647.24,1.271]
[1750199342934,1.15497437,647.55,647.24,1.271]
[1750199343532,1.15497437,647.56,647.24,1.271]
[1750199344131,1.15497437,647.55,647.24,1.271]
[1750199344337,1.15497437,647.56,647.24,1.271]
[1750199345335,1.15497437,647.57,647.24,1.271]
[1750199345935,1.15497437,647.58,647.24,1.271]
[1750199348439,1.15497437,647.59,647.24,1.271]
[1750199348738,1.15497437,647.58,647.24,1.271]
[1750199349034,1.15497437,647.59,647.24,1.271]
[1750199349238,1.15497437,647.59,647.25,1.447]
[1750199349441,1.15497437,647.6,647.25,1.447]
[1750199349636,1.15497437,647.62,647.25,1.447]
[1750199349935,1.15497437,647.63,647.25,1.447]
[1750199350342,1.15497437,647.65,647.25,1.447]
[1750199352241,1.15497437,647.67,647.25,1.447]
[1750199352739,1.15497437,647.66,647.25,1.447]
[1750199358042,1.15497437,647.66,647.26,1.521]
[1750199362047,1.15497437,647.64,647.26,1.521]
[1750199364050,1.15497437,647.63,647.26,1.521]
[1750199364649,1.15497437,647.62,647.26,1.521]
[1750199365849,1.15497437,647.59,647.27,1.447]
[1750199366447,1.15497437,647.58,647.27,1.447]
[1750199369950,1.15497437,647.59,647.27,1.447]
[1750199371456,1.15497437,647.61,647.27,1.447]
[1750199371756,1.15497437,647.6,647.27,1.447]
[1750199374456,1.15497437,647.59,647.27,1.447]
[1750199374658,1.15497437,647.6,647.27,1.447]
[1750199374857,1.15497437,647.59,647.27,1.447]
[1750199375355,1.15497437,647.6,647.27,1.447]
[1750199380563,1.15497437,647.63,647.27,1.447]
[1750199381458,1.15497437,647.62,647.27,1.447]
[1750199381661,1.15497437,647.63,647.27,1.447]
[1750199382262,1.15497437,647.63,647.28,1.534]
[1750199389472,1.15497437,647.63,647.29,1.346]
[1750199390468,1.15497437,647.61,647.29,1.346]
[1750199391473,1.15497437,647.6,647.29,1.346]
[1750199395472,1.15497437,647.61,647.29,1.346]
[1750199396372,1.15497437,647.6,647.29,1.346]
[1750199398275,1.15497437,647.61,647.29,1.346]
[1750199399075,1.15497437,647.6,647.29,1.346]
[1750199399977,1.15497437,647.59,647.29,1.346]
[1750199400475,1.15497437,647.55,647.29,1.346]
[1750199403081,1.15497437,647.54,647.29,1.346]
[1750199403580,1.15497437,647.55,647.29,1.346]
[1750199403877,1.15497437,647.54,647.29,1.346]
[1750199404279,1.15497437,647.55,647.29,1.346]
[1750199405281,1.15497437,647.54,647.29,1.346]
[1750199405682,1.15497437,647.55,647.29,1.346]
[1750199407282,1.15497437,647.54,647.29,1.346]
[1750199407480,1.15497437,647.55,647.29,1.346]
[1750199408085,1.15497437,647.54,647.29,1.346]
[1750199408378,1.15497437,647.54,647.28,1.534]
[1750199412088,1.15497437,647.54,647.29,1.252]
[1750199414291,1.15497437,647.53,647.29,1.252]
[1750199417589,1.15497437,647.52,647.29,1.252]
[1750199417890,1.15497437,647.53,647.29,1.252]
[1750199418290,1.15497437,647.53,647.3,1.263]
[1750199418591,1.15497437,647.52,647.3,1.263]
[1750199420194,1.15497437,647.51,647.3,1.263]
[1750199420794,1.15497437,647.52,647.3,1.263]
[1750199421393,1.15497437,647.5,647.3,1.263]
[1750199421595,1.15497437,647.51,647.3,1.263]
[1750199423793,1.15497437,647.5,647.3,1.263]
[1750199423995,1.15497437,647.51,647.3,1.263]
[1750199424193,1.15497437,647.5,647.3,1.263]
[1750199424392,1.15497437,647.51,647.3,1.263]
[1750199424592,1.15497437,647.5,647.3,1.263]
[1750199425694,1.15497437,647.51,647.3,1.263]
[1750199426198,1.15497437,647.52,647.3,1.263]
[1750199428197,1.15497437,647.5,647.3,1.263]
[1750199428401,1.15497437,647.49,647.3,1.263]
[1750199428701,1.15497437,647.51,647.3,1.263]
[1750199429399,1.15497437,647.49,647.3,1.263]
[1750199429800,1.15497437,647.48,647.3,1.263]
[1750199430303,1.15497437,647.47,647.3,1.263]
[1750199430504,1.15497437,647.46,647.3,1.263]
[1750199430705,1.15497437,647.47,647.3,1.263]
[1750199433107,1.15497437,647.49,647.3,1.263]
[1750199438309,1.15497437,647.5,647.3,1.263]
[1750199439113,1.15497437,647.49,647.3,1.263]
[1750199439412,1.15497437,647.5,647.3,1.263]
[1750199440213,1.15497437,647.47,647.3,1.263]
[1750199441211,1.15497437,647.45,647.3,1.263]
[1750199445217,1.15497437,647.46,647.3,1.263]
[1750199445422,1.15497437,647.46,647.21,1.196]
[1750199445622,1.15497437,647.45,647.21,1.196]
[1750199445822,1.15497437,647.46,647.21,1.196]
[1750199447423,1.15497437,647.46,647.22,1.2]
[1750199448125,1.15497437,647.45,647.22,1.2]
[1750199448627,1.15497437,647.46,647.22,1.2]
[1750199448827,1.15497437,647.52,647.22,1.2]
[1750199449826,1.15497437,647.53,647.22,1.2]
[1750199450522,1.15497437,647.54,647.22,1.2]
[1750199455328,1.15497437,647.53,647.22,1.2]
[1750199457028,1.15497437,647.54,647.22,1.2]
[1750199457229,1.15497437,647.56,647.22,1.2]
[1750199457434,1.15497437,647.61,647.22,1.2]
[1750199457633,1.15497437,647.62,647.22,1.2]
[1750199458134,1.15497437,647.64,647.22,1.2]
[1750199458333,1.15497437,647.65,647.22,1.2]
[1750199458530,1.15497437,647.63,647.22,1.2]
[1750199459130,1.15497437,647.64,647.22,1.2]
[1750199459431,1.15497437,647.66,647.22,1.2]
[1750199461839,1.15497437,647.67,647.22,1.2]
[1750199462738,1.15497437,647.69,647.22,1.2]
[1750199463438,1.15497437,647.68,647.22,1.2]
[1750199463640,1.15497437,647.69,647.22,1.2]
[1750199464540,1.15497437,647.7,647.22,1.2]
[1750199464740,1.15497437,647.69,647.22,1.2]
[1750199465242,1.15497437,647.7,647.22,1.2]
[1750199467042,1.15497437,647.71,647.22,1.2]
[1750199467246,1.15497437,647.7,647.22,1.2]
[1750199467648,1.53408498,647.82,647.22,1.2]
[1750199467649,1.15497437,647.71,647.22,1.2]
[1750199468241,1.15497437,647.7,647.22,1.2]
[1750199468441,1.15497437,647.71,647.22,1.2]
[1750199469143,1.15497437,647.74,647.22,1.2]
[1750199469647,1.15497437,647.75,647.21,1.196]
[1750199469947,1.15497437,647.76,647.21,1.196]
[1750199471047,1.15497437,647.76,647.04,1.53853111]